fUSD/lending_fUSD_20240906
["ID","MTS","AMOUNT","RATE_DAILY","PERIOD"]
[337415326,1725655842252,-308.62257812,0.000129,2]
[337415327,1725655842261,-168.64330012,0.000129,2]
[337415329,1725655842271,-192.934098,0.000129,2]
[337415331,1725655842280,-150.0,0.00012904,2]
[337415334,1725655842292,-150.0,0.00012924,2]
[337415336,1725655842301,-500.0,0.00012973,2]
[337415338,1725655842311,-150.0,0.00012981,2]
[337415340,1725655842320,-439.58526808,0.0001299,2]
[337415341,1725655842330,-439.58526808,0.0001299,2]
[337415343,1725655842339,-151.74,0.0001299,2]
[337415346,1725655842349,-151.74,0.0001299,2]
[337415347,1725655842359,-151.74,0.0001299,2]
[337415349,1725655842369,-151.74,0.0001299,2]
[337415352,1725655842379,-151.74,0.0001299,2]
[337415353,1725655842388,-151.74,0.0001299,2]
[337415355,1725655842398,-151.74,0.0001299,2]
[337415357,1725655842408,-151.74,0.0001299,2]
[337415359,1725655842418,-151.74,0.0001299,2]
[337415361,1725655842427,-151.74,0.0001299,2]
[337415363,1725655842437,-151.74,0.0001299,2]
[337415365,1725655842446,-2000.0,0.00012996,2]
[337415367,1725655842456,-200.0,0.00012996,2]
[337415369,1725655842465,-157.0,0.00012996,2]
[337415371,1725655842474,-2000.0,0.00012996,2]
[337415373,1725655842484,-200.0,0.00012996,2]
[337415375,1725655842493,-151.0,0.00012996,2]
[337415377,1725655842502,-178.686208,0.00012996,2]
[337415379,1725655842512,-151.0,0.00012996,2]
[337415381,1725655842522,-11418.3098958,0.00012996,2]
[337415383,1725655842531,-2000.0,0.00012996,2]
[337415385,1725655842541,-200.0,0.00012996,2]
[337415387,1725655842550,-151.0,0.00012996,2]
[337415389,1725655842560,-151.0,0.00012996,2]
[337415391,1725655842569,-151.0,0.00012996,2]
[337415393,1725655842578,-151.0,0.00012996,2]
[337415395,1725655842587,-151.0,0.00012996,2]
[337415397,1725655842597,-151.967461,0.00012996,2]
[337415399,1725655842606,-159.83719,0.00012996,2]
[337415401,1725655842616,-151.0,0.00012996,2]
[337415403,1725655842628,-151.0,0.00012996,2]
[337415405,1725655842637,-222.825765,0.00012996,2]
[337415407,1725655842647,-222.825765,0.00012996,2]
[337415409,1725655842660,-151.0,0.00012996,2]
[337415411,1725655842669,-151.0,0.00012996,2]
[337415412,1725655842684,-151.0,0.00012996,2]
[337415414,1725655842693,-151.245475,0.00012996,2]
[337415416,1725655842704,-818.44861,0.00012996,2]
[337415418,1725655842713,-818.44861,0.00012996,2]
[337415420,1725655842723,-818.44861,0.00012996,2]
[337415423,1725655842733,-818.44861,0.00012996,2]
[337415425,1725655842742,-818.44861,0.00012996,2]
[337415427,1725655842751,-818.44861,0.00012996,2]
[337415429,1725655842761,-56761.4212225,0.00012996,2]
[337415432,1725655842770,-200.0,0.00012996,2]
[337415434,1725655842779,-241.33539938,0.00012999,2]
[337415437,1725655842789,-2343.93033913,0.00012999,2]
[337415439,1725655842797,-151.0,0.00012999,2]
[337415441,1725655842806,-294.737007,0.00012999,2]
[337415443,1725655842815,-154.182139,0.00012999,2]
[337415445,1725655842824,-652.0,0.00013,2]
[337415447,1725655842833,-2248001.67724919,0.00013,2]
[337415450,1725655842842,-21749.01330905,0.00013,2]
[337415452,1725655842851,-800.0,0.00013,2]
[337415453,1725655842860,-151.0,0.00013,2]
[337415454,1725655842869,-6579.39773967,0.00013,2]
[337415455,1725655842879,-151.0,0.00013,2]
[337415456,1725655842887,-151.0,0.00013,2]
[337415457,1725655842896,-151.0,0.00013,2]
[337415460,1725655842906,-151.0,0.00013,2]
[337415462,1725655842915,-160.016412,0.00013,2]
[337415464,1725655842924,-151.0,0.00013,2]
[337415465,1725655842934,-151.0,0.00013,2]
[337415466,1725655842943,-151.0,0.00013,2]
[337415467,1725655842953,-151.0,0.00013,2]
[337415468,1725655842962,-151.0,0.00013,2]
[337415469,1725655842971,-151.0,0.00013,2]
[337415470,1725655842979,-151.0,0.00013,2]
[337415471,1725655842989,-151.612075,0.00013,2]
[337415472,1725655842998,-151.0,0.00013,2]
[337415474,1725655843007,-151.654733,0.00013,2]
[337415476,1725655843017,-151.0,0.00013,2]
[337415478,1725655843027,-151.0,0.00013,2]
[337415480,1725655843037,-151.0,0.00013,2]
[337415482,1725655843047,-151.0,0.00013,2]
[337415484,1725655843057,-154.086954,0.00013,2]
[337415486,1725655843065,-222.825765,0.00013,2]
[337415488,1725655843074,-222.825765,0.00013,2]
[337415490,1725655843083,-151.0,0.00013,2]
[337415492,1725655843092,-151.0,0.00013,2]
[337415494,1725655843101,-151.0,0.00013,2]
[337415496,1725655843110,-314.777249,0.00013,2]
[337415498,1725655843120,-314.777249,0.00013,2]
[337415500,1725655843129,-151.0,0.00013,2]
[337415502,1725655843138,-151.417233,0.00013,2]
[337415504,1725655843147,-151.0,0.00013,2]
[337415506,1725655843163,-151.0,0.00013,2]
[337415508,1725655843172,-151.0,0.00013,2]
[337415510,1725655843181,-151.0,0.00013,2]
[337415512,1725655843192,-151.0,0.00013,2]
[337415513,1725655843201,-151.0,0.00013,2]
[337415515,1725655843211,-151.0,0.00013,2]
[337415517,1725655843220,-153.198742,0.00013005,2]
[337415519,1725655843229,-152.586257,0.00013005,2]
[337415521,1725655843238,-151.0,0.00013005,2]
[337415523,1725655843246,-151.0,0.00013005,2]
[337415525,1725655843255,-152.890725,0.00013005,2]
[337415527,1725655843264,-500.0,0.00013014,2]
[337415529,1725655843273,-2748.11279471,0.0001303,2]
[337415531,1725655843282,-20441.0,0.00013034,2]
[337415533,1725655843292,-846.28960068,0.00013097,2]
[337415535,1725655843301,-2000.0,0.00013126,2]
[337415537,1725655843311,-200.0,0.00013126,2]
[337415539,1725655843320,-2000.0,0.00013126,2]
[337415541,1725655843330,-200.0,0.00013126,2]
[337415542,1725655843339,-2000.0,0.00013126,2]
[337415544,1725655843348,-200.0,0.00013126,2]
[337415547,1725655843358,-200.0,0.00013126,2]
[337415548,1725655843368,-151.0,0.0001313,2]
[337415550,1725655843377,-151.0,0.0001313,2]
[337415552,1725655843387,-151.0,0.0001313,2]
[337415554,1725655843396,-151.0,0.0001313,2]
[337415556,1725655843412,-152.469856,0.0001313,2]
[337415558,1725655843421,-151.0,0.0001313,2]
[337415560,1725655843431,-151.0,0.0001313,2]
[337415562,1725655843440,-151.0,0.0001313,2]
[337415564,1725655843450,-151.0,0.0001313,2]
[337415566,1725655843459,-151.0,0.0001313,2]
[337415569,1725655843468,-151.0,0.0001313,2]
[337415572,1725655843477,-151.0,0.0001313,2]
[337415575,1725655843487,-151.0,0.0001313,2]
[337415577,1725655843496,-222.825765,0.0001313,2]
[337415579,1725655843506,-222.825765,0.0001313,2]
[337415581,1725655843515,-151.0,0.0001313,2]
[337415583,1725655843525,-151.0,0.0001313,2]
[337415585,1725655843534,-314.777249,0.0001313,2]
[337415587,1725655843544,-314.777249,0.0001313,2]
[337415589,1725655843553,-151.0,0.0001313,2]
[337415591,1725655843566,-151.0,0.0001313,2]
[337415593,1725655843576,-243.824016,0.0001313,2]
[337415595,1725655843586,-151.0,0.0001313,2]
[337415597,1725655843597,-151.0,0.0001313,2]
[337415599,1725655843607,-1000.0,0.0001313,2]
[337415601,1725655843619,-1000.0,0.0001313,2]
[337415603,1725655843633,-1000.0,0.0001313,2]
[337415605,1725655843644,-1000.0,0.0001313,2]
[337415607,1725655843655,-1000.0,0.0001313,2]
[337415610,1725655843682,-1000.0,0.0001313,2]
[337415612,1725655843693,-1000.0,0.0001313,2]
[337415614,1725655843704,-1000.0,0.0001313,2]
[337415616,1725655843716,-1000.0,0.0001313,2]
[337415618,1725655843728,-1000.0,0.0001313,2]
[337415620,1725655843740,-1000.0,0.0001313,2]
[337415622,1725655843751,-1000.0,0.0001313,2]
[337415624,1725655843761,-1000.0,0.0001313,2]
[337415626,1725655843779,-1000.0,0.0001313,2]
[337415628,1725655843791,-1000.0,0.0001313,2]
[337415630,1725655843802,-1000.0,0.0001313,2]
[337415632,1725655843813,-1000.0,0.0001313,2]
[337415635,1725655843825,-1000.0,0.0001313,2]
[337415637,1725655843836,-1000.0,0.0001313,2]
[337415639,1725655843847,-1000.0,0.0001313,2]
[337415641,1725655843858,-1000.0,0.0001313,2]
[337415643,1725655843869,-1000.0,0.0001313,2]
[337415645,1725655843881,-1000.0,0.0001313,2]
[337415647,1725655843892,-1000.0,0.0001313,2]
[337415649,1725655843903,-1000.0,0.0001313,2]
[337415651,1725655843915,-1000.0,0.0001313,2]
[337415653,1725655843926,-1000.0,0.0001313,2]
[337415655,1725655843937,-1000.0,0.0001313,2]
[337415657,1725655843949,-1000.0,0.0001313,2]
[337415659,1725655843960,-1000.0,0.0001313,2]
[337415661,1725655843971,-1000.0,0.0001313,2]
[337415663,1725655843986,-1000.0,0.0001313,2]
[337415665,1725655843998,-1000.0,0.0001313,2]
[337415667,1725655844010,-1000.0,0.0001313,2]
[337415669,1725655844021,-1000.0,0.0001313,2]
[337415671,1725655844033,-1000.0,0.0001313,2]
[337415673,1725655844044,-1000.0,0.0001313,2]
[337415675,1725655844055,-223.0,0.0001313,2]
[337415677,1725655844066,-933.37,0.0001314,2]
[337415679,1725655844077,-933.37,0.00013144,2]
[337415681,1725655844089,-151.0,0.00013147,2]
[337415683,1725655844101,-204.926248,0.00013147,2]
[337415685,1725655844112,-933.37,0.00013147,2]
[337415687,1725655844123,-933.37,0.00013151,2]
[337415689,1725655844134,-933.37,0.00013154,2]
[337415690,1725655844145,-933.37,0.00013158,2]
[337415691,1725655844156,-933.37,0.00013161,2]
[337415692,1725655844187,-933.37,0.00013164,2]
[337415693,1725655844197,-933.37,0.00013168,2]
[337415694,1725655844209,-933.37,0.00013171,2]
[337415695,1725655844220,-1000.0,0.00013175,2]
[337415696,1725655844231,-1000.0,0.00013175,2]
[337415697,1725655844242,-1000.0,0.00013175,2]
[337415698,1725655844254,-1000.0,0.00013175,2]
[337415699,1725655844266,-1000.0,0.00013175,2]
[337415700,1725655844278,-1000.0,0.00013175,2]
[337415701,1725655844289,-1000.0,0.00013175,2]
[337415702,1725655844301,-1000.0,0.00013175,2]
[337415703,1725655844312,-1000.0,0.00013175,2]
[337415704,1725655844323,-1000.0,0.00013175,2]
[337415705,1725655844334,-1000.0,0.00013175,2]
[337415706,1725655844345,-1000.0,0.00013175,2]
[337415707,1725655844356,-1000.0,0.00013175,2]
[337415708,1725655844367,-933.37,0.00013175,2]
[337415709,1725655844379,-933.37,0.00013178,2]
[337415710,1725655844390,-933.37,0.00013182,2]
[337415711,1725655844401,-933.37,0.00013185,2]
[337415712,1725655844412,-933.37,0.00013189,2]
[337415713,1725655844423,-933.37,0.00013192,2]
[337415714,1725655844433,-933.37,0.00013196,2]
[337415715,1725655844444,-933.37,0.00013199,2]
[337415716,1725655844456,-933.37,0.00013202,2]
[337415717,1725655844467,-933.37,0.00013206,2]
[337415719,1725655844479,-2000.0,0.00013257,2]
[337415721,1725655844490,-200.0,0.00013257,2]
[337415723,1725655844501,-200.0,0.00013257,2]
[337415725,1725655844514,-151.0,0.00013257,2]
[337415727,1725655844525,-151.0,0.00013257,2]
[337415728,1725655844535,-151.0,0.00013257,2]
[337415729,1725655844545,-200.0,0.00013257,2]
[337415730,1725655844556,-151.0,0.00013257,2]
[337415731,1725655844567,-151.0,0.00013257,2]
[337415732,1725655844577,-151.0,0.00013257,2]
[337415733,1725655844588,-267.0,0.00013257,2]
[337415734,1725655844598,-151.0,0.00013257,2]
[337415736,1725655844609,-151.0,0.00013257,2]
[337415738,1725655844622,-222.825765,0.00013257,2]
[337415740,1725655844632,-222.825765,0.00013257,2]
[337415742,1725655844643,-162.81974,0.00013257,2]
[337415744,1725655844654,-151.0,0.00013257,2]
[337415746,1725655844665,-151.0,0.00013257,2]
[337415748,1725655844676,-200.0,0.00013257,2]
[337415750,1725655844698,-2748.11279471,0.00013264,2]
[337415752,1725655844710,-151.0,0.00013303,2]
[337415754,1725655844720,-314.777249,0.00013303,2]
[337415756,1725655844730,-314.777249,0.00013303,2]
[337415758,1725655844740,-151.0,0.00013303,2]
[337415760,1725655844750,-609.6,0.00013303,2]
[337415762,1725655844760,-512.32,0.00013366,2]
[337415764,1725655844771,-2000.0,0.0001339,2]
[337415766,1725655844781,-200.0,0.0001339,2]
[337415768,1725655844791,-200.0,0.0001339,2]
[337415770,1725655844800,-151.0,0.0001339,2]
[337415772,1725655844810,-151.0,0.0001339,2]
[337415773,1725655844820,-270.06355,0.0001339,2]
[337415775,1725655844830,-200.0,0.0001339,2]
[337415777,1725655844840,-200.0,0.0001339,2]
[337415780,1725655844851,-846.28960068,0.00013397,2]
[337415782,1725655844861,-151.0,0.00013399,2]
[337415783,1725655844870,-308.62257811,0.000134,2]
[337415785,1725655844879,-265.35,0.00013483,2]
[337415788,1725655844890,-2748.11279471,0.00013497,2]
[337415790,1725655844900,-168.31,0.00013506,2]
[337415792,1725655844910,-872.79098356,0.00013524,2]
[337415793,1725655844921,-200.0,0.00013524,2]
[337415796,1725655844931,-200.0,0.00013524,2]
[337415798,1725655844940,-200.0,0.00013524,2]
[337415800,1725655844950,-151.0,0.00013599,2]
[337415802,1725655844959,-846.28960068,0.00013698,2]
[337415804,1725655844969,-163.44,0.00013699,2]
[337415806,1725655844978,-2751.0,0.00013699,2]
[337415807,1725655844987,-166.43,0.00013699,2]
[337415809,1725655844996,-151.0,0.00013699,2]
[337415811,1725655845005,-151.0,0.00013699,2]
[337415813,1725655845015,-151.0,0.00013699,2]
[337415815,1725655845024,-151.0,0.00013699,2]
[337415818,1725655845034,-200.0,0.00013699,2]
[337415820,1725655845043,-2748.11279471,0.00013731,2]
[337415822,1725655845053,-151.74,0.0001379,2]
[337415824,1725655845062,-275.886587,0.00013799,2]
[337415826,1725655845071,-151.0,0.00013799,2]
[337415827,1725655845081,-32582.4737415,0.000138,3]
[337415829,1725655845091,-308.62257811,0.000139,2]
[337415831,1725655845101,-192.93409799,0.000139,2]
[337415833,1725655845111,-2748.11279471,0.00013965,2]
[337415835,1725655845122,-315.978078,0.00013973,2]
[337415837,1725655845131,-151.0,0.0001399,2]
[337415839,1725655845141,-207.0,0.00014,2]
[337415841,1725655845151,-315.0,0.00014035,2]
[337415843,1725655845161,-422.09,0.00014055,2]
[337415845,1725655845171,-422.09,0.00014055,2]
[337415847,1725655845181,-261.21,0.00014055,2]
[337415850,1725655845211,-170.92,0.00014178,2]
[337415851,1725655845221,-439.58526808,0.00014184,2]
[337415854,1725655845232,-101209.2134185,0.00014194,2]
[337415856,1725655845243,-2748.11279471,0.00014199,2]
[337415858,1725655845253,-151.0,0.00014394,2]
[337415877,1725655845462,-151.0,0.00014394,2]
[337415879,1725655845474,-1260.0,0.000144,2]
[337415881,1725655845485,-624.0,0.000144,2]
[337415883,1725655845496,-1546.0,0.000144,2]
[337415885,1725655845507,-468.791,0.000144,2]
[337415887,1725655845521,-557.0,0.000144,2]
[337415889,1725655845533,-931.0,0.000144,2]
[337415891,1725655845544,-811.0,0.000144,2]
[337415893,1725655845555,-1900.0,0.000144,2]
[337415894,1725655845566,-552.0,0.000144,2]
[337415895,1725655845578,-300.0,0.000144,2]
[337415896,1725655845589,-805.0,0.000144,2]
[337415897,1725655845600,-248.0,0.000144,2]
[337415899,1725655845610,-3341.0,0.000144,2]
[337415901,1725655845624,-1126.0,0.000144,2]
[337415903,1725655845636,-5857.0,0.000144,2]
[337415905,1725655845648,-289.013,0.000144,2]
[337415907,1725655845659,-13471.0,0.000144,2]
[337415909,1725655845670,-1079.0,0.000144,2]
[337415911,1725655845681,-150.0,0.000144,2]
[337415913,1725655845694,-151.0,0.000144,2]
[337415915,1725655845705,-151.0,0.000144,2]
[337415917,1725655845716,-308.62257811,0.000144,2]
[337415919,1725655845727,-2748.11279471,0.00014432,2]
[337415921,1725655845742,-606.83,0.00014501,2]
[337415923,1725655845753,-199.9,0.00014548,30]
[337415925,1725655845764,-151.0,0.00014594,2]
[337415927,1725655845775,-314.777249,0.00014594,2]
[337415930,1725655845786,-314.777249,0.00014594,2]
[337415932,1725655845797,-254.253976,0.00014594,2]
[337415934,1725655845808,-2748.11279471,0.00014666,2]
[337415936,1725655845819,-609.6,0.00014782,2]
[337415939,1725655845829,-151.74,0.00014784,2]
[337415941,1725655845842,-151.0,0.00014794,2]
[337415943,1725655845853,-151.0,0.00014794,2]
[337415945,1725655845863,-151.0,0.00014794,2]
[337415947,1725655845874,-151.0,0.00014794,2]
[337415949,1725655845885,-168.338294,0.00014794,2]
[337415952,1725655845896,-151.0,0.00014794,2]
[337415955,1725655845906,-151.0,0.00014794,2]
[337415957,1725655845917,-151.0,0.00014794,2]
[337415959,1725655845928,-151.0,0.00014794,2]
[337415961,1725655845939,-151.0,0.00014794,2]
[337415963,1725655845950,-151.0,0.00014794,2]
[337415965,1725655845961,-151.0,0.00014794,2]
[337415967,1725655845972,-500.0,0.00014794,2]
[337415969,1725655845983,-500.0,0.00014794,2]
[337415971,1725655845994,-500.0,0.00014794,2]
[337415973,1725655846005,-500.0,0.00014794,2]
[337415975,1725655846016,-500.0,0.00014794,2]
[337415977,1725655846027,-500.0,0.00014794,2]
[337415980,1725655846038,-500.0,0.00014794,2]
[337415982,1725655846052,-405.00368243,0.00014794,2]
[337415984,1725655846062,-151.0,0.00014794,2]
[337415986,1725655846072,-151.0,0.00014794,2]
[337415987,1725655846083,-471.93314908,0.00014794,2]
[337415990,1725655846094,-170.4603437,0.00014794,2]
[337415992,1725655846104,-151.0,0.00014794,2]
[337415994,1725655846115,-151.0,0.00014794,2]
[337415996,1725655846125,-222.825765,0.00014794,2]
[337415998,1725655846136,-222.825765,0.00014794,2]
[337416000,1725655846147,-222.825765,0.00014794,2]
[337416002,1725655846159,-222.825765,0.00014794,2]
[337416003,1725655846170,-222.825765,0.00014794,2]
[337416006,1725655846180,-222.825765,0.00014794,2]
[337416008,1725655846192,-151.0,0.00014794,2]
[337416010,1725655846202,-174.073508,0.00014794,2]
[337416012,1725655846213,-151.0,0.00014794,2]
[337416014,1725655846224,-151.0,0.00014794,2]
[337416016,1725655846235,-314.777249,0.00014794,2]
[337416018,1725655846246,-314.777249,0.00014794,2]
[337416020,1725655846259,-314.777249,0.00014794,2]
[337416022,1725655846270,-314.777249,0.00014794,2]
[337416024,1725655846281,-151.0,0.00014794,2]
[337416026,1725655846292,-151.0,0.00014794,2]
[337416028,1725655846304,-272.47,0.00014794,2]
[337416030,1725655846315,-14003.79,0.00014794,2]
[337416032,1725655846326,-14003.79,0.00014794,2]
[337416034,1725655846337,-14003.79,0.00014794,2]
[337416036,1725655846349,-14003.79,0.00014794,2]
[337416038,1725655846362,-14003.79,0.00014794,2]
[337416040,1725655846374,-14003.79,0.00014794,2]
[337416042,1725655846385,-14003.79,0.00014794,2]
[337416044,1725655846396,-14003.79,0.00014794,2]
[337416046,1725655846407,-14003.79,0.00014794,2]
[337416048,1725655846419,-14003.79,0.00014794,2]
[337416050,1725655846431,-14003.79,0.00014794,2]
[337416053,1725655846443,-14003.79,0.00014794,2]
[337416055,1725655846455,-14003.79,0.00014794,2]
[337416057,1725655846466,-202.833818,0.00014794,2]
[337416059,1725655846477,-500.0,0.00014794,2]
[337416061,1725655846488,-500.0,0.00014794,2]
[337416063,1725655846498,-500.0,0.00014794,2]
[337416065,1725655846509,-607.07311795,0.00014794,2]
[337416067,1725655846523,-315.978078,0.00014795,2]
[337416069,1725655846534,-222.825765,0.000148,2]
[337416071,1725655846545,-222.825765,0.000148,2]
[337416073,1725655846555,-151.0,0.000148,2]
[337416075,1725655846567,-512.32,0.00014851,2]
[337416076,1725655846578,-151.0,0.000149,2]
[337416078,1725655846589,-1000.0,0.000149,2]
[337416080,1725655846600,-1544.80842205,0.000149,2]
[337416082,1725655846610,-1000.0,0.000149,2]
[337416085,1725655846626,-308.62257811,0.000149,2]
[337416087,1725655846637,-2748.11279471,0.000149,2]
[337416089,1725655846647,-192.93409799,0.000149,2]
[337416091,1725655846660,-500.0,0.00014973,2]
[337416093,1725655846671,-500.0,0.00014973,2]
[337416095,1725655846683,-500.0,0.00014973,2]
[337416097,1725655846693,-151.0,0.00014973,2]
[337416099,1725655846705,-151.74,0.0001498,2]
[337416101,1725655846715,-265.35,0.00014981,2]
[337416103,1725655846727,-151.74,0.00014989,2]
[337416105,1725655846737,-14003.79,0.00014989,2]
[337416107,1725655846748,-151.0,0.0001499,2]
[337416109,1725655846759,-151.0,0.0001499,2]
[337416111,1725655846769,-151.0,0.0001499,2]
[337416112,1725655846779,-256.360759,0.0001499,2]
[337416115,1725655846790,-12410.0462567,0.0001499,2]
[337416117,1725655846801,-13401.7826177,0.0001499,2]
[337416119,1725655846811,-14393.5189786,0.0001499,2]
[337416121,1725655846822,-15385.2553396,0.0001499,2]
[337416123,1725655846833,-288.141384,0.0001499,2]
[337416125,1725655846843,-151.0,0.0001499,2]
[337416127,1725655846854,-151.0,0.0001499,2]
[337416129,1725655846865,-222.825765,0.0001499,2]
[337416131,1725655846877,-222.825765,0.0001499,2]
[337416133,1725655846888,-222.825765,0.0001499,2]
[337416135,1725655846898,-222.825761,0.0001499,2]
[337416137,1725655846908,-151.0,0.0001499,2]
[337416139,1725655846919,-249.770438,0.0001499,2]
[337416141,1725655846929,-314.777249,0.0001499,2]
[337416143,1725655846940,-314.777249,0.0001499,2]
[337416144,1725655846950,-314.777249,0.0001499,2]
[337416145,1725655846960,-314.777249,0.0001499,2]
[337416146,1725655846971,-314.777249,0.0001499,2]
[337416147,1725655846981,-314.777249,0.0001499,2]
[337416148,1725655846992,-55439.9460552,0.0001499,2]
[337416149,1725655847001,-54118.4708879,0.0001499,2]
[337416150,1725655847011,-52796.9957206,0.0001499,2]
[337416151,1725655847021,-51475.5205534,0.0001499,2]
[337416152,1725655847031,-151.74,0.0001499,2]
[337416153,1725655847041,-151.74,0.0001499,2]
[337416154,1725655847050,-151.74,0.0001499,2]
[337416155,1725655847060,-151.74,0.0001499,2]
[337416156,1725655847069,-151.74,0.0001499,2]
[337416157,1725655847078,-151.74,0.0001499,2]
[337416158,1725655847088,-151.74,0.0001499,2]
[337416159,1725655847097,-151.74,0.0001499,2]
[337416160,1725655847107,-151.74,0.0001499,2]
[337416161,1725655847116,-151.74,0.0001499,2]
[337416162,1725655847126,-151.74,0.0001499,2]
[337416163,1725655847136,-151.74,0.0001499,2]
[337416164,1725655847145,-151.74,0.0001499,2]
[337416165,1725655847155,-151.74,0.0001499,2]
[337416166,1725655847164,-151.74,0.0001499,2]
[337416167,1725655847173,-151.74,0.0001499,2]
[337416168,1725655847183,-151.74,0.0001499,2]
[337416169,1725655847192,-151.74,0.0001499,2]
[337416170,1725655847201,-151.74,0.0001499,2]
[337416171,1725655847211,-151.74,0.0001499,2]
[337416172,1725655847220,-1600.6208236,0.00014996,2]
[337416173,1725655847230,-14003.79,0.00014997,2]
[337416174,1725655847239,-151.0,0.00014999,2]
[337416175,1725655847249,-209.781088,0.00014999,2]
[337416176,1725655847258,-314.777249,0.00014999,2]
[337416177,1725655847267,-314.777255,0.00014999,2]
[337416178,1725655847276,-14003.79,0.00014999,2]
[337416179,1725655847286,-14003.79,0.00014999,2]
[337416180,1725655847295,-14003.79,0.00014999,2]
[337416181,1725655847305,-14003.79,0.00014999,2]
[337416182,1725655847314,-14003.79,0.00014999,2]
[337416183,1725655847324,-14003.79,0.00014999,2]
[337416184,1725655847334,-14003.79,0.00014999,2]
[337416185,1725655847344,-14003.79,0.00014999,2]
[337416186,1725655847353,-14003.9857,0.00014999,2]
[337416187,1725655847363,-2448695.00563224,0.00015,2]
[337416188,1725655847371,-1219435.93591513,0.00015,2]
[337416189,1725655847381,-228480.65026028,0.00015,2]
[337416190,1725655847390,-1524854.46058706,0.00015,2]
[337416191,1725655847568,-150.0,0.000144,2]
[337416192,1725655847578,-8009.43636897,0.00015,2]
[337416193,1725655847589,-326.58325724,0.00015,2]
[337416194,1725655847600,-1332.58125,0.00015,2]
[337416195,1725655847611,-313.40099967,0.00015,2]
[337416196,1725655847669,-151.0,0.00013,2]
[337416197,1725655847678,-846.28960068,0.00013998,2]
[337416198,1725655847687,-632.0,0.00015,2]
[337416199,1725655847697,-15062.11753941,0.00015,2]
[337416200,1725655847712,-52411.01239361,0.00015,2]
[337416201,1725655847723,-1330.36349,0.00015,2]
[337416202,1725655847739,-548.95000001,0.00015,2]
[337416203,1725655847750,-256.19998685,0.00015,2]
[337416204,1725655847766,-1065.0,0.00015,2]
[337416205,1725655847777,-11004.99999995,0.00015,2]
[337416206,1725656047404,170.92,0.00010728,2]
[337416214,1725656173861,292.84,0.00010959,2]
[337416215,1725656273108,529.13,0.00010705,2]
[337416216,1725656435374,200.63,0.00012773,30]
[337416217,1725656523225,170.92,9.863e-05,2]
[337416218,1725656533644,187.54,0.00010959,2]
[337416219,1725656544271,156.28,0.00010959,2]
[337416220,1725656554805,781.42,0.00010959,2]
[337416221,1725656729039,750.0,0.00011,2]
[337416222,1725656790188,388.324929,0.00012039,2]
[337416232,1725656846754,502.67,0.00010991,2]
[337416254,1725656907065,-300.0,0.00012099,2]
[337416255,1725656907093,-8978.21313417,0.000121,2]
[337416256,1725656907125,-9278.21313417,0.000121,2]
[337416257,1725656907170,-9278.21313417,0.000121,2]
[337416259,1725656907227,-4687.52017027,0.000121,2]
[337416261,1725656907276,-9278.21313417,0.000121,2]